lending/lending_fUSD_20240111
["ID","MTS","AMOUNT","RATE_DAILY","PERIOD"]
[311257085,1704999041019,-3000.0,0.0003685,14]
[311257086,1704999041029,-3000.0,0.0003686,14]
[311257087,1704999041038,-3000.0,0.0003687,14]
[311257088,1704999041048,-3000.0,0.0003688,14]
[311257089,1704999041057,-3000.0,0.0003689,14]
[311257090,1704999041066,-3000.0,0.000369,14]
[311257091,1704999041075,-3000.0,0.0003691,14]
[311257092,1704999041085,-200.0,0.00036911,2]
[311257093,1704999041094,-3000.0,0.0003692,15]
[311257094,1704999041103,-3000.0,0.0003693,15]
[311257095,1704999041113,-3000.0,0.0003694,15]
[311257096,1704999041122,-3000.0,0.0003695,15]
[311257097,1704999041132,-151.0,0.00036951,2]
[311257098,1704999041142,-300.39533009,0.0003696,30]
[311257099,1704999041152,-3000.0,0.0003696,15]
[311257100,1704999041161,-3000.0,0.0003697,15]
[311257101,1704999041172,-3000.0,0.0003698,15]
[311257102,1704999041181,-155.0,0.00036987,2]
[311257103,1704999041190,-3000.0,0.0003699,15]
[311257104,1704999041199,-5000.0,0.00037,3]
[311257105,1704999041209,-1397.68747687,0.00037,7]
[311257106,1704999041218,-250.0,0.00037,120]
[311257107,1704999041227,-155.0,0.00037,4]
[311257108,1704999041237,-310.27195603,0.00037,4]
[311257109,1704999041246,-2240.5,0.00037,7]
[311257110,1704999041255,-3000.0,0.00037,15]
[311257111,1704999041265,-157.68042803,0.00037,2]
[311257112,1704999041274,-304.4,0.00037,2]
[311257113,1704999041285,-86380.69448446,0.00037,5]
[311257114,1704999041294,-3000.0,0.0003701,15]
[311257115,1704999041303,-3000.0,0.0003702,15]
[311257116,1704999041312,-3000.0,0.0003703,15]
[311257117,1704999041322,-3000.0,0.0003704,15]
[311257118,1704999041331,-3000.0,0.0003705,15]
[311257119,1704999041340,-5818.47712,0.0003706,15]
[311257120,1704999041349,-3762.93,0.00037075,2]
[311257121,1704999041359,-2519.26341924,0.00037097,2]
[311257122,1704999041368,-6639.87,0.000371,7]
[311257123,1704999041378,-5110.81,0.000371,7]
[311257124,1704999041387,-348.48495055,0.00037231,8]
[311257125,1704999041397,-1500.0,0.000373,25]
[311257126,1704999041407,-200.0,0.0003737,20]
[311257127,1704999041416,-151.68522207,0.00037437,2]
[311257128,1704999041425,-153.84,0.00037443,2]
[311257129,1704999041435,-391.09,0.00037475,2]
[311257131,1704999041445,-1490.0,0.000375,12]
[311257132,1704999041454,-150.1,0.000375,2]
[311257133,1704999041463,-150.0,0.00037741,2]
[311257134,1704999041472,-150.0,0.00037741,2]
[311257135,1704999041482,-2252361.20072203,0.00037742,3]
[311257136,1704999041491,-171962.60647474,0.00037742,13]
[311257137,1704999041501,-140733.14767259,0.00037742,14]
[311257138,1704999041510,-83125.32033891,0.00037742,12]
[311257139,1704999041519,-765.08541647,0.00037762,10]
[311257140,1704999041529,-1000.0,0.00037784,30]
[311257141,1704999041538,-10000.0,0.00037784,120]
[311257142,1704999041547,-169.00772569,0.00037784,120]
[311257143,1704999041557,-906.97,0.00037784,60]
[311257144,1704999041567,-3535.83,0.00037784,7]
[311257145,1704999041577,-514.12226196,0.00037784,120]
[311257146,1704999041586,-500.0,0.00037784,120]
[311257147,1704999041595,-611.96034839,0.00037784,120]
[311257148,1704999041605,-1966.56789,0.00037784,30]
[311257150,1704999041614,-1908.286752,0.00037784,30]
[311257152,1704999041624,-536.0,0.00037784,120]
[311257154,1704999041633,-305.038799,0.00037784,30]
[311257155,1704999041643,-1000.0,0.00037784,2]
[311257156,1704999041652,-1000.0,0.00037784,2]
[311257157,1704999041661,-1000.0,0.00037784,2]
[311257158,1704999041672,-1000.0,0.00037784,2]
[311257159,1704999041681,-1000.0,0.00037784,2]
[311257160,1704999041690,-1000.0,0.00037784,2]
[311257161,1704999041699,-1000.0,0.00037784,2]
[311257162,1704999041709,-1000.0,0.00037784,2]
[311257163,1704999041718,-1000.0,0.00037784,2]
[311257164,1704999041727,-1000.0,0.00037784,2]
[311257165,1704999041736,-1416.688925,0.00037784,2]
[311257166,1704999041746,-50118.02934142,0.000378,30]
[311257167,1704999041756,-153.0,0.000378,7]
[311257168,1704999041766,-153.0,0.000378,7]
[311257169,1704999041775,-2240.5,0.000378,7]
[311257170,1704999041785,-2730.2,0.000378,3]
[311257171,1704999041794,-2730.2,0.000378,3]
[311257172,1704999041803,-2730.2,0.000378,3]
[311257173,1704999041813,-2730.2,0.000378,3]
[311257174,1704999041822,-2730.2,0.000378,3]
[311257175,1704999041832,-2730.2,0.000378,3]
[311257176,1704999041841,-2730.2,0.000378,3]
[311257177,1704999041850,-2730.2,0.000378,3]
[311257178,1704999041860,-2730.2,0.000378,3]
[311257179,1704999041869,-2730.2,0.000378,3]
[311257180,1704999041878,-2730.2,0.000378,3]
[311257181,1704999041888,-2730.2,0.000378,3]
[311257182,1704999041897,-2730.2,0.000378,3]
[311257183,1704999041906,-2730.2,0.000378,3]
[311257184,1704999041916,-2730.2,0.000378,3]
[311257185,1704999041925,-2730.2,0.000378,3]
[311257186,1704999041935,-2730.2,0.000378,3]
[311257187,1704999041944,-2730.2,0.000378,3]
[311257188,1704999041954,-2730.2,0.000378,3]
[311257189,1704999041963,-2730.2,0.000378,3]
[311257190,1704999041972,-1500.0,0.000378,25]
[311257191,1704999041982,-275.678675,0.000378,2]
[311257192,1704999041991,-157.54,0.000378,3]
[311257193,1704999042001,-157.54,0.000378,3]
[311257194,1704999042010,-157.54,0.000378,3]
[311257195,1704999042019,-157.54,0.000378,3]
[311257196,1704999042029,-676.724794,0.000378,25]
[311257197,1704999042038,-391.91305,0.00037808,14]
[311257198,1704999042047,-8823.88,0.00037808,2]
[311257199,1704999042057,-289.48719423,0.00037897,2]
[311257200,1704999042066,-150.0,0.00037899,2]
[311257201,1704999042075,-150.0,0.00037899,2]
[311257202,1704999042084,-362.43,0.000379,2]
[311257203,1704999042093,-5110.81,0.000379,7]
[311257204,1704999042102,-638434.413275,0.000379,3]
[311257205,1704999042111,-634.64,0.00037951,2]
[311257206,1704999042121,-156.94429716,0.00037988,7]
[311257207,1704999042130,-1000.0,0.00038,2]
[311257208,1704999042139,-322.24368922,0.00038,2]
[311257209,1704999042148,-1660.45577482,0.00038,4]
[311257210,1704999042157,-158367.04220359,0.00038,4]
[311257211,1704999042167,-1049.67172007,0.00038,2]
[311257212,1704999042176,-3060.04420173,0.00038,4]
[311257213,1704999042185,-250.0,0.00038,120]
[311257214,1704999042194,-6639.87,0.00038,7]
[311257215,1704999042203,-2032.36326035,0.00038,2]
[311257216,1704999042213,-2032.36326035,0.00038,2]
[311257217,1704999042223,-2032.36326035,0.00038,2]
[311257218,1704999042232,-2032.36326035,0.00038,2]
[311257219,1704999042241,-2032.36326035,0.00038,2]
[311257220,1704999042250,-2032.36326035,0.00038,2]
[311257221,1704999042260,-2032.36326035,0.00038,2]
[311257222,1704999042270,-2032.36326035,0.00038,2]
[311257223,1704999042279,-2032.36326035,0.00038,2]
[311257224,1704999042288,-2032.36326035,0.00038,2]
[311257225,1704999042298,-2032.36326035,0.00038,2]
[311257226,1704999042307,-2032.36326035,0.00038,2]
[311257227,1704999042316,-2032.36326035,0.00038,2]
[311257228,1704999042325,-2032.36326035,0.00038,2]
[311257229,1704999042335,-2032.36326035,0.00038,2]
[311257230,1704999042344,-2032.36326035,0.00038,2]
[311257231,1704999042354,-2032.36326035,0.00038,2]
[311257232,1704999042363,-2032.36326035,0.00038,2]
[311257233,1704999042373,-2032.36326035,0.00038,2]
[311257234,1704999042383,-2032.36326035,0.00038,2]
[311257235,1704999042394,-2032.36326035,0.00038,2]
[311257236,1704999042403,-2032.36326035,0.00038,2]
[311257237,1704999042413,-2032.36326035,0.00038,2]
[311257238,1704999042423,-2032.36326035,0.00038,2]
[311257239,1704999042433,-2032.36326035,0.00038,2]
[311257240,1704999042442,-2032.36326035,0.00038,2]
[311257241,1704999042451,-2032.36326035,0.00038,2]
[311257242,1704999042461,-2032.36326035,0.00038,2]
[311257243,1704999042470,-2032.36326035,0.00038,2]
[311257244,1704999042479,-2032.36326035,0.00038,2]
[311257245,1704999042488,-418.17723487,0.00038,2]
[311257246,1704999042498,-418.17723487,0.00038,2]
[311257247,1704999042507,-418.17723487,0.00038,2]
[311257248,1704999042516,-418.17723487,0.00038,2]
[311257249,1704999042525,-418.17723487,0.00038,2]
[311257250,1704999042535,-418.17723487,0.00038,2]
[311257251,1704999042544,-418.17723487,0.00038,2]
[311257252,1704999042554,-418.17723487,0.00038,2]
[311257253,1704999042563,-418.17723487,0.00038,2]
[311257254,1704999042572,-418.17723487,0.00038,2]
[311257255,1704999042581,-418.17723487,0.00038,2]
[311257256,1704999042591,-418.17723487,0.00038,2]
[311257257,1704999042600,-418.17723487,0.00038,2]
[311257258,1704999042609,-418.17723487,0.00038,2]
[311257259,1704999042618,-418.17723487,0.00038,2]
[311257260,1704999042628,-418.17723487,0.00038,2]
[311257261,1704999042637,-418.17723487,0.00038,2]
[311257262,1704999042647,-418.17723487,0.00038,2]
[311257263,1704999042656,-418.17723487,0.00038,2]
[311257264,1704999042665,-418.17723487,0.00038,2]
[311257265,1704999042675,-418.17723487,0.00038,2]
[311257266,1704999042685,-418.17723487,0.00038,2]
[311257267,1704999042694,-418.17723487,0.00038,2]
[311257268,1704999042703,-418.17723487,0.00038,2]
[311257269,1704999042713,-418.17723487,0.00038,2]
[311257270,1704999042722,-418.17723487,0.00038,2]
[311257271,1704999042731,-418.17723487,0.00038,2]
[311257272,1704999042741,-418.17723487,0.00038,2]
[311257274,1704999042750,-418.17723487,0.00038,2]
[311257276,1704999042759,-418.17723487,0.00038,2]
[311257277,1704999042768,-217.24858632,0.00038,2]
[311257279,1704999042778,-217.24858632,0.00038,2]
[311257281,1704999042787,-217.24858632,0.00038,2]
[311257283,1704999042796,-4443.93,0.00038078,2]
[311257284,1704999042805,-200.0,0.0003824,21]
[311257285,1704999042814,-151.68522207,0.00038267,2]
[311257286,1704999042823,-2745.13816245,0.00038279,2]
[311257287,1704999042832,-22735.9795329,0.0003833,10]
[311257289,1704999042847,-158.65407432,0.00038334,7]
[311257291,1704999042856,-171.71814317,0.00038338,7]
[311257293,1704999042866,-3762.93,0.00038352,2]
[311257295,1704999042875,-289.48719423,0.00038353,2]
[311257297,1704999042885,-1750.58745688,0.00038356,30]
[311257299,1704999042895,-666.0,0.00038356,2]
[311257301,1704999042904,-500.0,0.00038356,2]
[311257303,1704999042914,-153.84,0.00038356,2]
[311257305,1704999042924,-3868.0,0.00038356,10]
[311257307,1704999042934,-1000.0,0.00038356,2]
[311257309,1704999042943,-1000.0,0.00038356,2]
[311257311,1704999042953,-1000.0,0.00038356,2]
[311257313,1704999042962,-1000.0,0.00038356,2]
[311257315,1704999042972,-1000.0,0.00038356,2]
[311257317,1704999042981,-1000.0,0.00038356,2]
[311257319,1704999042990,-1000.0,0.00038356,2]
[311257321,1704999042999,-1000.0,0.00038356,2]
[311257322,1704999043008,-1018.0,0.00038356,2]
[311257323,1704999043019,-1000.0,0.00038356,2]
[311257324,1704999043029,-1000.0,0.00038356,2]
[311257325,1704999043038,-1000.0,0.00038356,2]
[311257326,1704999043047,-1000.0,0.00038356,2]
[311257327,1704999043056,-1000.0,0.00038356,2]
[311257328,1704999043066,-1000.0,0.00038356,2]
[311257329,1704999043075,-1000.0,0.00038356,2]
[311257330,1704999043085,-1000.0,0.00038356,2]
[311257331,1704999043094,-1000.0,0.00038356,2]
[311257332,1704999043103,-1000.0,0.00038356,2]
[311257333,1704999043112,-1000.0,0.00038356,2]
[311257334,1704999043121,-1000.0,0.00038356,2]
[311257335,1704999043130,-1000.0,0.00038356,2]
[311257336,1704999043139,-1000.0,0.00038356,2]
[311257337,1704999043148,-1000.0,0.00038356,2]
[311257338,1704999043158,-1000.0,0.00038356,2]
[311257339,1704999043167,-1000.0,0.00038356,2]
[311257340,1704999043176,-1000.0,0.00038356,2]
[311257341,1704999043185,-1000.0,0.00038356,2]
[311257342,1704999043194,-414.0,0.00038356,2]
[311257343,1704999043203,-21927.89,0.00038356,2]
[311257344,1704999043213,-155.0,0.00038357,2]
[311257345,1704999043222,-2240.5,0.000384,7]
[311257346,1704999043232,-1000.0,0.000384,2]
[311257347,1704999043243,-1000.0,0.000384,2]
[311257348,1704999043252,-8305.4368942,0.00038425,11]
[311257349,1704999043262,-391.09,0.00038453,2]
[311257350,1704999043272,-171.71814317,0.00038458,7]
[311257351,1704999043282,-156.94429716,0.00038481,7]
[311257352,1704999043291,-488.89674087,0.000385,4]
[311257353,1704999043300,-5110.81,0.000385,7]
[311257354,1704999043310,-218.68581734,0.00038555,7]
[311257356,1704999043319,-200.0,0.000386,2]
[311257358,1704999043328,-153.0,0.000386,7]
[311257359,1704999043338,-6639.87,0.000386,7]
[311257360,1704999043346,-153.0,0.000386,7]
[311257361,1704999043355,-1479.51,0.00038651,60]
[311257362,1704999043365,-444.54148582,0.00038767,2]
[311257363,1704999043374,-171.71814317,0.00038774,7]
[311257365,1704999043383,-184.87968352,0.000388,24]
[311257367,1704999043392,-975.0,0.000388,16]
[311257369,1704999043401,-1000.0,0.000389,2]
[311257371,1704999043411,-391.91305,0.00038904,14]
[311257373,1704999043420,-1479.51,0.00038904,60]
[311257375,1704999043429,-281.73212903,0.0003898,2]
[311257377,1704999043438,-2999.99,0.00038999,2]
[311257379,1704999043447,-3000.0,0.00038999,2]
[311257381,1704999043456,-3000.0,0.00038999,2]
[311257383,1704999043466,-3000.0,0.00038999,2]
[311257385,1704999043476,-3000.0,0.00038999,2]
[311257387,1704999043513,-380.31,0.00038999,2]
[311257388,1704999043523,-282.68132749,0.00039,4]
[311257389,1704999043533,-1427.43973993,0.00039,2]
[311257390,1704999043542,-140880.1629,0.00039,2]
[311257391,1704999043552,-2240.5,0.00039,7]
[311257392,1704999043561,-655.97684368,0.00039014,2]
[311257393,1704999043571,-659.20857413,0.00039014,2]
[311257394,1704999043580,-2736.54532925,0.00039014,2]
[311257395,1704999043589,-283.99651879,0.00039014,2]
[311257396,1704999043598,-171.71814317,0.00039083,7]
[311257397,1704999043608,-151.68522207,0.00039098,3]
[311257398,1704999043617,-5110.81,0.000391,7]
[311257399,1704999043626,-200.0,0.0003911,23]
[311257400,1704999043780,-1479.51,0.00039158,60]
[311257401,1704999043790,-6639.87,0.000392,7]
[311257402,1704999043799,-489.47,0.0003926,2]
[311257403,1704999043809,-153.84,0.00039269,2]
[311257404,1704999043819,-800.0,0.00039273,10]
[311257405,1704999043829,-3423.2369444,0.000394,4]
[311257406,1704999043839,-250.0,0.000394,4]
[311257407,1704999043852,-250.0,0.000394,4]
[311257408,1704999043861,-250.0,0.000394,4]
[311257409,1704999043870,-250.0,0.000394,4]
[311257410,1704999043879,-250.0,0.000394,4]
[311257411,1704999043889,-474.2,0.000394,4]
[311257412,1704999043898,-153.0,0.000394,7]
[311257413,1704999043908,-2730.2,0.000394,3]
[311257414,1704999043918,-2730.2,0.000394,3]
[311257415,1704999043928,-2730.2,0.000394,3]
[311257416,1704999043938,-2730.2,0.000394,3]
[311257417,1704999043947,-2730.2,0.000394,3]
[311257418,1704999043956,-2730.2,0.000394,3]
[311257419,1704999043966,-2730.2,0.000394,3]
[311257420,1704999043975,-2730.2,0.000394,3]
[311257421,1704999043984,-2730.2,0.000394,3]
[311257422,1704999043994,-2730.2,0.000394,3]
[311257423,1704999044005,-2730.2,0.000394,3]
[311257424,1704999044015,-2730.2,0.000394,3]
[311257425,1704999044024,-2730.2,0.000394,3]
[311257426,1704999044034,-2730.2,0.000394,3]
[311257427,1704999044043,-2730.2,0.000394,3]
[311257428,1704999044053,-2730.2,0.000394,3]
[311257429,1704999044062,-2730.2,0.000394,3]
[311257430,1704999044072,-2730.2,0.000394,3]
[311257431,1704999044081,-2730.2,0.000394,3]
[311257432,1704999044090,-2730.2,0.000394,3]
[311257433,1704999044099,-157.54,0.000394,3]
[311257434,1704999044109,-157.54,0.000394,3]
[311257435,1704999044118,-157.54,0.000394,3]
[311257436,1704999044128,-157.54,0.000394,3]
[311257437,1704999044138,-157.54,0.000394,3]
[311257438,1704999044147,-157.54,0.000394,3]
[311257439,1704999044156,-157.54,0.000394,3]
[311257440,1704999044165,-157.54,0.000394,3]
[311257441,1704999044175,-1479.51,0.00039412,60]
[311257442,1704999044184,-391.09,0.00039432,2]
[311257443,1704999044194,-171.71814317,0.00039466,7]
[311257444,1704999044203,-4548.95757275,0.000395,4]
[311257445,1704999044213,-2519.26341924,0.00039531,2]
[311257446,1704999044222,-150.0,0.00039531,2]
[311257447,1704999044231,-150.0,0.00039531,2]
[311257448,1704999044241,-150.0,0.00039531,2]
[311257449,1704999044250,-150.0,0.00039531,2]
[311257450,1704999044259,-171.71814317,0.00039555,7]
[311257451,1704999044268,-171.790088,0.00039582,2]
[311257452,1704999044277,-168.251256,0.00039582,2]
[311257453,1704999044287,-168.255559,0.00039582,2]
[311257454,1704999044297,-10202.757263,0.00039582,2]
[311257455,1704999044307,-176.909052,0.00039582,2]
[311257456,1704999044316,-548.156392,0.00039582,2]
[311257457,1704999044325,-186.329813,0.00039582,2]
[311257458,1704999044334,-1490.391487,0.00039582,2]
[311257459,1704999044343,-154.100341,0.00039582,2]
[311257460,1704999044353,-367.613733,0.00039582,2]
[311257461,1704999044362,-179.629477,0.00039582,2]
[311257462,1704999044370,-2216.709137,0.00039582,2]
[311257463,1704999044379,-1470.454934,0.00039582,2]
[311257464,1704999044389,-2240.5,0.000396,7]
[311257465,1704999044399,-6181.0,0.00039618,2]
[311257466,1704999044408,-3762.93,0.0003963,2]
[311257467,1704999044418,-160.50739785,0.00039652,7]
[311257468,1704999044427,-150.0,0.00039658,2]
[311257469,1704999044436,-1479.51,0.00039665,60]
[311257470,1704999044446,-5110.81,0.000397,7]
[311257471,1704999044455,-155.0,0.00039727,2]
[311257472,1704999044464,-428.28052565,0.000398,4]
[311257473,1704999044474,-6639.87,0.000398,7]
[311257474,1704999044483,-800.0,0.00039846,2]
[311257475,1704999044492,-2745.13816245,0.00039858,2]
[311257476,1704999044502,-171.71814317,0.00039876,7]
[311257477,1704999044511,-300.00528678,0.000399,4]
[311257478,1704999044521,-218.68581734,0.00039905,7]
[311257479,1704999044530,-1479.51,0.00039919,60]
[311257480,1704999044539,-151.68522207,0.00039928,6]
[311257481,1704999044548,-294.17802863,0.00039944,15]
[311257482,1704999044557,-200.0,0.00039944,15]
[311257483,1704999044567,-1014.67766403,0.00039945,15]
[311257484,1704999044576,-294.17802863,0.00039946,15]
[311257485,1704999044586,-18696.75382473,0.00039948,15]
[311257486,1704999044595,-5800.0,0.00039949,2]
[311257487,1704999044604,-32719.31919336,0.00039951,10]
[311257488,1704999044614,-1661.4281134,0.00039951,15]
[311257489,1704999044623,-27577.30633036,0.00039953,10]
[311257490,1704999044632,-1014.67766403,0.00039953,15]
[311257491,1704999044641,-2907.49919853,0.00039953,10]
[311257492,1704999044651,-27577.30633036,0.00039954,10]
[311257493,1704999044660,-15758.46076016,0.00039954,15]
[311257494,1704999044669,-1661.4281134,0.00039954,15]
[311257495,1704999044679,-32719.31919336,0.00039955,10]
[311257496,1704999044688,-329.32629277,0.00039955,10]
[311257497,1704999044698,-18696.75382473,0.00039955,15]
[311257498,1704999044706,-514.81155017,0.00039957,10]
[311257499,1704999044716,-27577.30633036,0.00039957,10]
[311257500,1704999044725,-5800.0,0.00039958,2]
[311257501,1704999044734,-2907.49919853,0.00039959,10]
[311257502,1704999044745,-1775.68591213,0.0003996,10]
[311257503,1704999044754,-1775.68591213,0.00039962,10]
[311257504,1704999044763,-200.0,0.00039963,15]
[311257505,1704999044772,-1775.68591213,0.00039964,10]
[311257506,1704999044782,-2907.49919853,0.00039965,10]
[311257507,1704999044791,-5800.0,0.00039966,2]
[311257508,1704999044800,-514.81155017,0.00039967,10]
[311257509,1704999044810,-514.81155017,0.00039968,10]
[311257510,1704999044821,-1014.67766403,0.00039971,15]
[311257511,1704999044831,-18696.75382473,0.00039973,15]
[311257512,1704999044845,-329.32629277,0.00039974,10]
[311257513,1704999044854,-5800.0,0.00039975,2]
[311257514,1704999044864,-32719.31919336,0.00039975,10]
[311257515,1704999044873,-15758.46076016,0.00039975,15]
[311257516,1704999044883,-15758.46076016,0.00039977,15]
[311257517,1704999044893,-2907.49919853,0.00039977,10]
[311257518,1704999044902,-1775.68591213,0.00039977,10]
[311257519,1704999044911,-294.17802863,0.00039977,15]
[311257520,1704999044920,-514.81155017,0.0003998,10]
[311257521,1704999044930,-1661.4281134,0.0003998,15]
[311257522,1704999044940,-573.28692986,0.0003998,3]
[311257523,1704999044949,-616.96924111,0.0003998,3]
[311257524,1704999044958,-157.5,0.0003998,3]
[311257525,1704999044967,-315.0,0.0003998,3]
[311257526,1704999044977,-157.5,0.0003998,3]
[311257527,1704999044986,-32719.31919336,0.0003998,10]
[311257528,1704999044996,-200.0,0.00039981,24]
[311257529,1704999045006,-329.32629277,0.00039983,10]
[311257530,1704999045015,-27577.30633036,0.00039983,10]
[311257531,1704999045025,-5800.0,0.00039983,2]
[311257532,1704999045034,-500.0,0.00039987,2]
[311257533,1704999045043,-300.0,0.00039987,3]
[311257534,1704999045053,-200.0,0.00039987,4]
[311257535,1704999045062,-329.32629277,0.00039989,10]
[311257536,1704999045071,-204.30056541,0.0003999,7]
[311257537,1704999045080,-5800.0,0.00039992,2]
[311257538,1704999045090,-289.48719423,0.00039997,2]
[311257539,1704999045099,-150.0,0.00039999,2]
[311257540,1704999045108,-150.0,0.00039999,2]
[311257541,1704999045118,-500.0,0.00039999,4]
[311257542,1704999045127,-500.0,0.00039999,4]
[311257543,1704999045136,-482.14515029,0.00039999,4]
[311257544,1704999045146,-500.0,0.00039999,4]
[311257545,1704999045154,-272.06273617,0.00039999,7]
[311257546,1704999045163,-29729.689663,0.0004,2]
[311257547,1704999045173,-2255.21999702,0.0004,7]
[311257548,1704999045183,-307.37637032,0.0004,21]
[311257549,1704999045192,-5000.0,0.0004,35]
[311257550,1704999045201,-22008.0721351,0.0004,4]
[311257551,1704999045210,-2000.0,0.0004,2]
[311257552,1704999045220,-155.66520816,0.0004,4]
[311257553,1704999045229,-400.72842246,0.0004,7]
[311257554,1704999045238,-200.0,0.0004,2]
[311257555,1704999045247,-3900.3489169,0.0004,3]
[311257556,1704999045256,-155.0,0.0004,2]
[311257557,1704999045266,-183631.15843967,0.0004,15]
[311257558,1704999045275,-18767.49045081,0.0004,2]
[311257559,1704999045285,-780.10020627,0.0004,4]
[311257560,1704999045294,-956.60549549,0.0004,2]
[311257561,1704999045303,-1440.212232,0.0004,2]
[311257562,1704999045312,-2129.004223,0.0004,2]
[311257563,1704999045321,-13682.0162,0.0004,2]
[311257564,1704999045330,-5800.0,0.0004,2]
[311257565,1704999045339,-400.0,0.0004,120]
[311257566,1704999045349,-20080.731869,0.0004,2]
[311257567,1704999045358,-155.42468431,0.0004,3]
[311257568,1704999045367,-1837.899192,0.0004,2]
[311257569,1704999045377,-255.0,0.0004,12]
[311257570,1704999045386,-500000.0,0.0004,4]
[311257571,1704999045395,-223.65882795,0.0004,4]
[311257572,1704999045404,-17927.90643813,0.0004,4]
[311257573,1704999045414,-350.0,0.0004,120]
[311257574,1704999045424,-2069.0,0.0004,2]
[311257575,1704999045434,-5085.0,0.0004,2]
[311257576,1704999045443,-210.38937704,0.0004,2]
[311257577,1704999045452,-500.0,0.0004,7]
[311257578,1704999045462,-500.0,0.0004,7]
[311257579,1704999045471,-500.0,0.0004,7]
[311257580,1704999045481,-1411.99961524,0.0004,2]
[311257581,1704999045490,-500.0,0.0004,7]
[311257582,1704999045499,-500.0,0.0004,7]
[311257583,1704999045509,-500.0,0.0004,7]
[311257584,1704999045518,-500.0,0.0004,7]
[311257585,1704999045527,-500.0,0.0004,7]
[311257586,1704999045536,-500.0,0.0004,7]
[311257587,1704999045546,-500.0,0.0004,7]
[311257588,1704999045555,-500.0,0.0004,7]
[311257589,1704999045564,-500.0,0.0004,7]
[311257590,1704999045574,-500.0,0.0004,7]
[311257591,1704999045583,-500.0,0.0004,7]
[311257592,1704999045592,-500.0,0.0004,7]
[311257593,1704999045601,-500.0,0.0004,7]
[311257594,1704999045611,-500.0,0.0004,7]
[311257595,1704999045620,-500.0,0.0004,7]
[311257596,1704999045629,-500.0,0.0004,7]
[311257597,1704999045639,-500.0,0.0004,7]
[311257598,1704999045648,-426.83929807,0.0004,30]
[311257599,1704999045657,-500.0,0.0004,7]
[311257600,1704999045666,-500.0,0.0004,7]
[311257601,1704999045676,-500.0,0.0004,7]
[311257602,1704999045685,-500.0,0.0004,7]
[311257603,1704999045694,-500.0,0.0004,7]
[311257604,1704999045703,-500.0,0.0004,7]
[311257605,1704999045712,-500.0,0.0004,7]
[311257606,1704999045721,-500.0,0.0004,7]
[311257608,1704999045731,-500.0,0.0004,7]
[311257610,1704999045741,-500.0,0.0004,7]
[311257612,1704999045750,-642.29398543,0.0004,7]
[311257614,1704999045759,-391.91305,0.0004,14]
[311257615,1704999045768,-150.0,0.0004,2]
[311257616,1704999045777,-150.0,0.0004,2]
[311257617,1704999045787,-150.0,0.0004,2]
[311257619,1704999045796,-150.0,0.0004,2]
[311257620,1704999045806,-150.0,0.0004,2]
[311257621,1704999045815,-150.0,0.0004,2]
[311257622,1704999045825,-150.0,0.0004,2]
[311257623,1704999045835,-150.0,0.0004,2]
[311257624,1704999045846,-150.0,0.0004,2]
[311257625,1704999045857,-150.0,0.0004,2]
[311257626,1704999045867,-150.0,0.0004,2]
[311257627,1704999045876,-150.0,0.0004,2]
[311257628,1704999045886,-150.0,0.0004,2]
[311257629,1704999045895,-150.0,0.0004,2]